Cogmind - Beta 16 --- EXPLORER MODE // 2025.11.24 @ 15:37:41 Player: K.K.Y. Result: Destroyed by 1P-QGV(R) with Subdweller Laser Performance ------------- Evolutions (0) 0 Regions Visited (3) 600 Robots Destroyed (25) 125 Value Destroyed (649) 649 Prototype IDs (12) 240 Alien Tech Used (0) 0 Bonus (0) 0 TOTAL SCORE: 1614 Bonus ------- None Cogmind --------- Core Integrity 0/250 Matter 41/300 Energy 125/125 System Corruption 0% Temperature Cool (6) Movement Treading (160) Location -10/Subcaves Parts ------- > --- POWER (1) -------- Light Ion Engine > --- PROPULSION (2) --- Light Treads Spiked Treads > --- UTILITY (3) ------ Cobbler Unit > --- WEAPON (2) ------- (None) > --- INVENTORY (5) ---- Medium Storage Unit Scrap Shield Makeshift System Restoration Module Ripper Peak State ------------ > --- POWER ------------ Light Ion Engine > --- PROPULSION ------- Light Treads Spiked Treads > --- UTILITY ---------- Cobbler Unit > --- WEAPON ----------- Powered Cannon > --- INVENTORY -------- Medium Storage Unit Scrap Shield Makeshift System Restoration Module Ripper [Rating: 23] Favorites ----------- Power Light Ion Engine Engine Light Ion Engine Propulsion Light Treads Treads Light Treads Utility Cobbler Unit Device Cobbler Unit Protection Scrap Shield Weapon Powered Cannon Energy Cannon Powered Cannon Ballistic Gun Assault Rifle Special Weapon Mining Laser Build | -11 -10 -10 -10 ------- Run | Yrd Mat Min Sub Slots Evolved 1 | . 1 . . Power . | . . . . Propulsion . | . . . . Utility 1 | . 1 . . Weapon . | . . . . Parts Attached 11 | . 3 1 7 Power 1 | . . . 1 Engine 1 | . . . 1 Core . | . . . . Reactor . | . . . . Propulsion 3 | . . . 3 Treads 3 | . . . 3 Leg . | . . . . Wheel . | . . . . Hover . | . . . . Flight . | . . . . Utility 2 | . . . 2 Device 1 | . . . 1 Storage . | . . . . Processor . | . . . . Hackware . | . . . . Protection 1 | . . . 1 Artifact . | . . . . Weapon 5 | . 3 1 1 Energy Gun . | . . . . Energy Cannon 2 | . 1 . 1 Ballistic Gun 2 | . 1 1 . Ballistic Cannon . | . . . . Launcher . | . . . . Special Weapon 1 | . 1 . . Impact Weapon . | . . . . Slashing Weapon . | . . . . Piercing Weapon . | . . . . Special Melee Weapon . | . . . . Unidentified Prototypes . | . . . . Parts Lost 1 | . . . 1 Power . | . . . . Propulsion . | . . . . Utility . | . . . . Weapon 1 | . . . 1 Highest Loss Streak 1 | . . . 1 To Critical Strikes . | . . . . Average Backups 4 | 2 4 5 3 Power . | . 1 1 . Propulsion . | 1 2 2 . Utility 2 | . 1 2 2 Weapon . | . . . . Tool/Special . | . . . . Unused Backups 7 | . . . 7 Power . | . . . . Propulsion . | . . . . Utility 5 | . . . 5 Weapon 2 | . . . 2 Tool/Special . | . . . . Average Slot Usage (%) 46 | . 11 24 52 Engine 7 | . . . 9 Treads 16 | . . . 21 Device 5 | . . . 6 Protection 2 | . . . 3 Energy Cannon 8 | . 1 . 10 Ballistic Gun 2 | . 6 11 . Special Weapon 2 | . 3 12 . Peak Build Rating 23 | . 2 2 23 Average Rating 17 | . 1 1 21 On Entrance 1 | . . 2 2 Avg Prop Armor Cover (%) . | . . . . Naked Turns 43 | . 37 . 6 Heaviest Build 30 | . 3 3 30 Greatest Support 40 | 3 3 3 40 Greatest Overweight (x) 2 | . . . 2 Average Overweight (x) . | . . . . Largest Inventory Capacity 5 | 5 5 5 5 Average Capacity 5 | 5 5 5 5 Most Carried 5 | 5 5 5 5 Average Carried 4 | 2 4 5 4 Final Capacity 5 | 5 5 5 5 Final Carried 5 | 5 5 5 5 Class Distribution -------------------- 100% | Hacker-Mutant Dominant Class ---------------- Hacker-Mutant | -10/Materials Hacker-Mutant | -10/Mines Hacker-Mutant | -10/Subcaves Resources | -11 -10 -10 -10 ----------- Run | Yrd Mat Min Sub Matter Collected 746 | 145 180 136 285 Remotely . | . . . . Salvage Created 828 | . 200 42 586 Parts 51 | . 9 9 33 Haulers Intercepted 1 | . 1 . . Recyclers Shooed 1 | . . 1 . Parts Field Recycled . | . . . . Retrieved Matter . | . . . . Parts Self-Destructed . | . . . . Prevented . | . . . . Parts Restored . | . . . . Kills | -11 -10 -10 -10 ------- Run | Yrd Mat Min Sub Combat Hostiles Destroyed 21 | . 4 6 11 Guns 7 | . 4 3 . Cannons 10 | . . 3 7 Classes Destroyed 7 | . 4 . 3 Hauler 1 | . 1 . . Turret 2 | . . . 2 Watcher 1 | . 1 . . Swarmer 9 | . 2 6 1 Grunt 2 | . 2 . . Cobbler 2 | . . . 2 Subdweller 10 | . . . 10 Best Kill Streak 4 | . 4 2 3 Combat Bots Only 4 | . 4 2 2 Max Kills in Single Turn 1 | . 1 1 1 Gunslinging . | . . . . Exploded . | . . . . Melee . | . . . . Uniques/NPCs Destroyed . | . . . . Combat | -11 -10 -10 -10 -------- Run | Yrd Mat Min Sub Hostile Shots Fired 155 | . 20 22 113 Missed 43 | . 6 3 34 Hits 112 | . 14 19 79 Projectile 112 | . 14 19 79 Critical Strikes 2 | . 2 . . Damage Taken 955 | . 104 96 755 Core 256 | . 46 46 164 Absorbed by Shields . | . . . . Ignored by Resistances 588 | . 66 63 459 Core Remaining (%) 100 | 100 . . . Volleys Fired 93 | . 17 13 63 Largest 2 | . 1 2 1 Hottest 120 | . 60 120 100 Shots Fired 98 | . 17 18 63 Gun 25 | . 15 10 . Cannon 64 | . 2 . 62 Launcher . | . . . . Special 9 | . . 8 1 Kinetic 25 | . 15 10 . Thermal 73 | . 2 8 63 Explosive . | . . . . Electromagnetic . | . . . . Robot Hit Streak 20 | . 17 20 15 Robot Miss Streak 1 | . . 1 1 Penetration Max . | . . . . Secondary Targets . | . . . . Shots Hit Robots 68 | . 17 13 38 Core Hits 27 | . 9 8 10 Critical Kills 6 | . . . 6 Critical Parts Destroyed . | . . . . Critical Strikes 6 | . . . 6 Meltdown 6 | . . . 6 Melee Attacks . | . . . . Impact . | . . . . Slashing . | . . . . Piercing . | . . . . Sneak Attacks . | . . . . Combat Hostiles . | . . . . Follow-up Attacks . | . . . . Damage Inflicted 2316 | . 226 239 1851 Guns 303 | . 191 112 . Cannons 1872 | . 35 . 1837 Explosions . | . . . . Melee . | . . . . Ramming 45 | . . 31 14 Kinetic 303 | . 191 112 . Thermal 1968 | . 35 96 1837 Explosive . | . . . . Electromagnetic . | . . . . Impact . | . . . . Slashing . | . . . . Piercing . | . . . . Highest Corruption . | . . . . Average Corruption . | . . . . Corruption Purged . | . . . . Corruption Blocked . | . . . . Overload Shots . | . . . . Overflow Damage 39 | . . . 39 Projectiles 39 | . . . 39 Explosions . | . . . . Melee . | . . . . Knockbacks 1 | . . . 1 Impact 1 | . . . 1 Kinetic . | . . . . Secondary . | . . . . Self-Inflicted Damage 14 | . . 14 . Shots . | . . . . Rammed 14 | . . 5 9 Targets Rammed 14 | . . 5 9 Kicked . | . . . . Crushed . | . . . . Highest Temperature 25 | . 12 25 13 Average Temperature 14 | . 9 20 8 Received Heat Transfer 408 | . 114 . 294 Siege Activations . | . . . . Martial Activations . | . . . . Shielding Activations . | . . . . Robots Disrupted . | . . . . Combat Hostiles . | . . . . Robots Corrupted . | . . . . Combat Hostiles . | . . . . Parts Fried . | . . . . Impact Corruptions . | . . . . Robots Melted 6 | . . . 6 Combat Hostiles 4 | . . . 4 Parts Melted 8 | . . 1 7 Heat Transferred 274 | . 74 200 . Parts Sabotaged . | . . . . Parts Stolen . | . . . . Parts Stripped . | . . . . Power Chain Reactions . | . . . . Alert | -11 -10 -10 -10 ------- Run | Yrd Mat Min Sub Maximum Alert Level . | . . . . Low Security (%) 100 | 100 100 100 . Level 1 . | . . . . Level 2 . | . . . . Level 3 . | . . . . Level 4 . | . . . . Level 5 . | . . . . High Security . | . . . . Max Security . | . . . . Peak Influence 85 | . 85 51 . Initial 9 | . . 9 . Average 17 | . 40 9 . Influence Increases 427 | . 125 152 150 Destroy 0b10 Robot/C 260 | . 80 120 60 Destroy 0b10 Robot/NC 10 | . 10 . . Destroy Leader 54 | . 24 30 . Successful Hack 11 | . 11 . . Destroy Structure 2 | . . 2 . Lose Combat Pursuer 90 | . . . 90 Influence Decreases 427 | . 90 166 171 Entered New Map 40 | . . 26 14 Time Decay 387 | . 90 140 157 Squads Dispatched . | . . . . Investigation . | . . . . Extermination . | . . . . Reinforcement . | . . . . Assault . | . . . . Garrison . | . . . . Intercept . | . . . . Searches Triggered . | . . . . Construction Impeded . | . . . . Haulers Reinforced . | . . . . Active Scanning Responses . | . . . . Cargo Convoy Interrupts . | . . . . Stealth | -11 -10 -10 -10 --------- Run | Yrd Mat Min Sub Distress Signals . | . . . . Communications Jammed . | . . . . Distress Signals . | . . . . Times Spotted 30 | . 6 6 18 Peak Tracking Total 3 | . 2 2 3 Tactical Retreats 3 | . . . 3 Traps | -11 -10 -10 -10 ------- Run | Yrd Mat Min Sub Traps Triggered . | . . . . Indirectly . | . . . . Trap Hack Attempts . | . . . . Triggered . | . . . . Disarmed . | . . . . Reprogrammed . | . . . . Reused . | . . . . Traps Extracted . | . . . . Installed . | . . . . Triggered . | . . . . Machines | -11 -10 -10 -10 ---------- Run | Yrd Mat Min Sub Machines Disabled 1 | . . . 1 Max in Single Turn 1 | . . . 1 Machines Repaired . | . . . . Machines Dismantled . | . . . . Machines Sabotaged . | . . . . Overloaded Fab Kills . | . . . . Hacking | -11 -10 -10 -10 --------- Run | Yrd Mat Min Sub Machines Accessed 4 | . 3 . 1 Terminals 3 | . 3 . . Fabricators . | . . . . Repair Stations . | . . . . Recycling Units . | . . . . Scanalyzers . | . . . . Garrison Access . | . . . . Total Hacks 9 | . 8 . 1 Successful 4 | . 3 . 1 Failed 5 | . 5 . . Catastrophic . | . . . . Database Lockouts . | . . . . Manual 5 | . 5 . . Terminals 8 | . 8 . . Fabricators . | . . . . Repair Stations . | . . . . Recycling Units . | . . . . Scanalyzers . | . . . . Garrison Access . | . . . . Terminal Hacks 1 | . . . 1 Proto ID Catalog 1 | . . . 1 Fabricator Hacks . | . . . . Repair Station Hacks . | . . . . Recycling Unit Hacks . | . . . . Scanalyzer . | . . . . Garrison Access Hacks . | . . . . Unauthorized Hacks 3 | . 3 . . Terminals 3 | . 3 . . Botnet 3 | . 3 . . Fabricators . | . . . . Repair Stations . | . . . . Recycling Units . | . . . . Scanalyzers . | . . . . Garrison Access . | . . . . Data Cores Recovered . | . . . . Used . | . . . . Hacking Detections 3 | . 3 . . Full Trace Events 1 | . 1 . . Feedback Events . | . . . . Feedback Blocked . | . . . . Robot Schematics Acquired . | . . . . Robots Built . | . . . . Authchips . | . . . . Time . | . . . . Total Robot Build Rating . | . . . . Part Schematics Acquired . | . . . . Parts Built . | . . . . Authchips . | . . . . Time . | . . . . Total Part Build Rating . | . . . . Part Studies Acquired . | . . . . Parts Repaired . | . . . . Time . | . . . . Parts Recycled . | . . . . Recycled Matter . | . . . . Retrieved Matter . | . . . . Retrieved Components . | . . . . Parts Scanalyzed . | . . . . Part Schematics Acquired . | . . . . Parts Damaged . | . . . . Bothacking | -11 -10 -10 -10 ------------ Run | Yrd Mat Min Sub Used RIF Installer . | . . . . Robots Hacked . | . . . . Non-combat . | . . . . Combat . | . . . . Robot Hacks Applied . | . . . . Relay Couplers Released . | . . . . Fabnet Peak Effective % . | . . . . Robots Rewired . | . . . . Allies Hacked . | . . . . Hacks Repelled . | . . . . Allies | -11 -10 -10 -10 -------- Run | Yrd Mat Min Sub Total Allies . | . . . . Largest Group . | . . . . Highest-Rated Group . | . . . . Highest-Rated Ally . | . . . . Total Orders . | . . . . Ally Attacks . | . . . . Total Damage . | . . . . Kills . | . . . . Allies Corrupted . | . . . . Allies Melted . | . . . . Intel | -11 -10 -10 -10 ------- Run | Yrd Mat Min Sub Active Infowar (turns) . | . . . . Robot Analysis Total . | . . . . Derelict Logs Recovered 1 | . . . 1 Drone Launches . | . . . . Drone Recoveries . | . . . . Exploration | -11 -10 -10 -10 ------------- Run | Yrd Mat Min Sub Turns Passed 3434 | 25 168 496 2745 Spaces Moved 2284 | 39 224 701 1320 Core 1111 | 39 224 701 147 Treads 1173 | . . . 1173 Legs . | . . . . Wheels . | . . . . Hover . | . . . . Flight . | . . . . Fastest Speed 50 | 50 50 50 50 Average Speed 106 | 50 50 50 148 Slowest Speed 160 | 50 50 50 160 Overloaded Moves . | . . . . Propulsion Burnouts . | . . . . Robots Hopped . | . . . . Potential Cave-ins . | . . . . Cave-ins Triggered . | . . . . Exploration Rate (%) 55 | 3 39 99 79 Regions Visited 3 Branch Regions 2 Pre-discovered Areas 3 | . . 1 2 Known Exits Taken 3 | 1 1 1 . Unknown Exits Taken . | . . . . Scrap Searched 4 | . . 1 3 Spaces Dug 3 | . . . 3 Terrain Destroyed 9 | . . 2 7 Melee . | . . . . Projectile 9 | . . 2 7 AOE . | . . . . Terrain Rammed . | . . . . Walls Destroyed . | . . . . Machines Disabled . | . . . . Actions | -11 -10 -10 -10 --------- Run | Yrd Mat Min Sub Total 3171 | 43 262 812 2054 Wait 736 | . 14 92 630 Move 2281 | 38 223 700 1320 Hop . | . . . . Pick Up 15 | 5 2 . 8 Fast Attach 7 | . 2 1 4 Attach 6 | . 2 . 4 Detach . | . . . . Swap 1 | . . . 1 Drop 14 | . 2 1 11 Fire 93 | . 17 13 63 Melee . | . . . . Ram 5 | . . 5 . Kick . | . . . . Crush 9 | . . . 9 Escape Stasis . | . . . . Rewire . | . . . . Trap . | . . . . Miscellaneous 4 | . . . 4 Route ------- -11/Scrapyard -10/Materials -10/Mines (discovered 3 exits: *Mat x2 / *Sub) -10/Subcaves (discovered 4 exits: *Mat x2 / *Rec / [*Scr]) History --------- Turn | Location | Event 8 | -11/Scrapyard | Identified exit to Materials 8 | -11/Scrapyard | Discovered exit to Materials (range 16) 26 | -11/Scrapyard | Entered Materials 26 | -10/Materials | Evolved 1 slot: Utility x1 133 | -10/Materials | Identified exit to Mines 133 | -10/Materials | Discovered exit to Mines (range 11) 194 | -10/Materials | Entered Mines 244 | -10/Mines | Met a Derelict bent on vengeance 256 | -10/Mines | Identified exit to Materials 256 | -10/Mines | Discovered exit to Materials (range 8) 263 | -10/Mines | Learned location of Storage (-9) 307 | -10/Mines | Build established: Hacker-Mutant 505 | -10/Mines | Discovered exit to Materials (range 8) 525 | -10/Mines | Identified exit to Subcaves 525 | -10/Mines | Discovered exit to Subcaves (range 6) 690 | -10/Mines | Entered Subcaves 691 | -10/Subcaves | Approached by a straggling Scientist 732 | -10/Subcaves | Identified exit to Materials 732 | -10/Subcaves | Discovered exit to Materials (range 16) 752 | -10/Subcaves | Visited 4L-MR0's lab 770 | -10/Subcaves | Found Powered Cannon 771 | -10/Subcaves | Attached Powered Cannon, gained temporary slot: Power 880 | -10/Subcaves | Learned location of Zion (-6) 880 | -10/Subcaves | Met a Zionite searching for "candidates" 1021 | -10/Subcaves | Identified exit to Recycling 1021 | -10/Subcaves | Discovered exit to Recycling (range 9) 1176 | -10/Subcaves | Discovered exit to Materials (range 4) 1263 | -10/Subcaves | Scientist uncovered a shortcut to Scraptown 2715 | -10/Subcaves | A swath of the cavern ceiling suddenly collapsed 2862 | -10/Subcaves | Core integrity fell below 50% 3404 | -10/Subcaves | Core integrity fell below 20% 3435 | -10/Subcaves | Destroyed by 1P-QGV(R) with Subdweller Laser Last Messages --------------- Cannon. 03026_ Cobbler Unit puts together Sub. Laser. 03066_ Cobbler Unit puts together Piercing Trap. 03105_ Subatomizers dissect the Sub. Power Source. 03106_ Cobbler Unit puts together Sub. Machine Gun. 03117_ Subatomizers dissect the Sub. Power Source. 03146_ Cobbler Unit puts together Battle Rifle. 03154_ Subatomizers dissect the Sub. Machine Gun. 03186_ Cobbler Unit puts together Battle Cannon. 03191_ Subatomizers dissect the Sub. Machine Gun. 03393_ Powered Cannon destroyed. 03394_ Temporary Power slot lost. 03402_ Slammed into 1P-QGV(R). 03408_ 1P-QGV(R) knocked back. 03410_ Slammed into 1P-QGV(R). Map ----- +----------------------------------------------------+ | ##????????????????????????????????????????? | | ## #????????????????????????????????????????? | | ?## #????????????????????????????????????????? | | ??# ##????????????????????????????????????????? | | ??## #?????????????????????????????????????????? | | ???# #?????????????????????????????????????????? | | ???# #?????????????????????????????????????????? | | ##?# ##?????????????????????????????????????????? | | ### #????????????????????????? ??????????????? | | #????? ????????????????? ??????????????? | | ### ###?????# ??????????##?? ???????????????? | | #?###????????# ?????????? ### ????????????????? | | #????#####??## ????????? ?????????????????? | | ????## ##?# #######?# ??????????????????? | | ????# ##? ## ???????????????????? | | ????# ##?? #????????????????????? | | ????## #???? #?????????????????????? | | ###?## #?????# #??????????????????????? | | " ### #??????# #??????????????????????? | | "" #??????# ##?????????????????????? | | # #?????## ##????????????????????? | | ## #????## R #????????????????????? | | ?# ## ###### ###????????????????????? | | ?# ### #??????????????????????? | | # ### ## #??????????????????????? | | # #?# ## ### @#??????????????????????? | | ## #?#### ## ##?# #??????????????????????? | | ?###???# #### #??# #?????????????????????? | | ???????# #?# #??## #?????????????????????? | | ?? #??## ##?# #??## #????????????????????? | | #???## ##??# #??? ???????????????????? | | #?????# ##???## ???# ??????????????????? | | #??????###?????# ?? ### ?????????????????? | | ##??????????????? #?###?? [ ?????????????????? | | #??? ???????????? ##???????%= ????????????????? | | ???????????? ##????????[ ???????????????? | | ##?????????? ??????????= ????????????????? | | ### ###???????? ##???????????????????????????? | | ###?# #???????? ????????????????????????????? | | ##### #????###?? #???????? ??????????????????? | | ## #####? ## #?????#?? #?????????????????? | | ## ? # ##???? #? ##????????????????? | | ? #??? # ????????????????? | | #??# ???? ????????????????? | | #### ??????? ?????????????????? | | #??# #????????? #?????????????????? | | #### #?????????? ##???##???????????? | | ### ########???? #### ##??????????? | | ### ##???# # #??????????? | | #### #??## #? #??????????? | +----------------------------------------------------+ Best States ------------- Heat Dissipation 25 Energy Generation 10 Energy Capacity 125 Matter Stores 300 Matter Capacity 300 Sight Range 16 Terrain Scan Density 10 Armor Coverage 800 Resistance: KI 35 Resistance: TH 35 Resistance: EX 35 Resistance: EM 35 Resistance: I 35 Resistance: S 35 Resistance: P 35 Evasion (%) 50 Recoil Reduction 2 Offensive Hacking 20 Item Schematics ----------------- None Robot Schematics ------------------ None Fabricated ------------ Nothing Repaired ---------- Nothing Studied --------- None Alien Tech Used ----------------- None Achievements -------------- None Challenges ------------ None Game ------ Seed SalvageMultireflexAirjet Manual? 0 Play Time 00:15:27 Cumulative 138.8 hours Start 2025.11.24 @ 15:22:36 End 2025.11.24 @ 15:37:41 Sessions 1 Manual Loads 0 Difficulty Explorer Special Mode None Game No. 161 Rogue 0 Adventurer 0 Explorer 161 Win Type - Total 0 Types 0/0/0/0/0/0/0/0/0/0 Lore% 68 Gallery% 66 Achievement% 51 Wizard Run 0 Options --------- Layout 1 ASCII 0 Keyboard 0 Movement Mouse Keybinds 0 Fullscreen 1 Font 24/Smallcaps Map View 50x35 Zoom Use 0% Tactical HUD 1 Map Filters NONE Filters NONE Steam 1 RUN: e16d3731-322b-44e2-be4b-4d0829e3cb08